fUSD/lending_fUSD_20240919
["ID","MTS","AMOUNT","RATE_DAILY","PERIOD"]
[338608976,1726780238365,-565.54412118,0.000128,2]
[338608977,1726780238377,-33119.6434447,0.000128,2]
[338608978,1726780238466,-2515.47398675,0.000128,2]
[338608979,1726780238478,-2926.27464045,0.000128,2]
[338608985,1726780240180,-3504.1443,0.000128,2]
[338608986,1726780240191,-933.5,0.000128,2]
[338608987,1726780240203,-1315.26306928,0.000128,2]
[338608988,1726780240215,-628.10547313,0.000128,2]
[338608989,1726780240229,-322.56152394,0.000128,2]
[338608990,1726780240240,-1367.76559331,0.000128,2]
[338608991,1726780240253,-6356.23636126,0.000128,2]
[338608992,1726780240264,-3868.2,0.000128,2]
[338608993,1726780240276,-883.29999,0.000128,2]
[338608994,1726780240288,-3705.05,0.000128,2]
[338608995,1726780240299,-1157.25446909,0.000128,2]
[338608996,1726780240311,-1568.29552831,0.000128,2]
[338609146,1726780242073,500.0,0.00010082,2]
[338609147,1726780242105,500.0,0.00010082,2]
[338609148,1726780242428,500.0,8.986e-05,2]
[338609149,1726780242582,500.0,8.22e-05,2]
[338609153,1726780243185,-377.11693109,0.000128,2]
[338609154,1726780243198,-457.46219434,0.000128,2]
[338609155,1726780243210,-265.6000002,0.000128,2]
[338609156,1726780243371,-1079.31918,0.000128,2]
[338609157,1726780243398,-38498.9647242,0.000128,2]
[338609158,1726780243425,-573.0,0.000128,2]
[338609159,1726780243454,-15189.49899342,0.000128,2]
[338609160,1726780243511,-653.31270692,0.000128,2]
[338609166,1726780243646,500.0,0.00011452,2]
[338609167,1726780243941,500.0,0.00011726,2]
[338609168,1726780244175,500.0,0.0001096,2]
[338609185,1726780246434,-668.30843146,0.000128,2]
[338609186,1726780246602,-444.39970075,0.000128,2]
[338609187,1726780246615,-973.24910627,0.000128,2]
[338609189,1726780256788,7500.0,0.000127,2]
[338609195,1726780280480,1070.03,0.00012208,2]
[338609196,1726780291754,675.1766,0.000127,2]
[338609197,1726780326367,250.0,0.00012208,2]
[338609198,1726780337244,17004.7442,0.000127,2]
[338609201,1726780384350,834.74,0.00010367,2]
[338609202,1726780384568,834.74,0.00012631,2]
[338609203,1726780400021,500.0,0.000118,2]
[338609204,1726780400050,500.0,0.000118,2]
[338609205,1726780400759,500.0,0.000118,2]
[338609206,1726780400803,500.0,0.000118,2]
[338609207,1726780401535,500.0,0.000118,2]
[338609208,1726780401572,500.0,0.000118,2]
[338609209,1726780402309,500.0,0.000118,2]
[338609210,1726780402338,500.0,0.000118,2]
[338609211,1726780403082,500.0,0.000118,2]
[338609212,1726780403111,500.0,0.000118,2]
[338609213,1726780403842,500.0,0.000118,2]
[338609214,1726780403871,398.2,0.000118,2]
[338609215,1726780404605,500.0,0.000118,2]
[338609216,1726780405360,500.0,0.000118,2]
[338609217,1726780406107,500.0,0.000118,2]
[338609218,1726780406890,500.0,0.000118,2]
[338609219,1726780407655,500.0,0.000118,2]
[338609220,1726780408395,465.9,0.000118,2]
[338609221,1726780442535,172.39,0.00012321,2]
[338609222,1726780474537,2649.0,0.00012678,6]
[338609223,1726780480948,412.03,0.0001228,2]
[338609224,1726780584061,9042.07,0.00012487,2]
[338609225,1726780603627,1000.0,0.00012389,2]
[338609227,1726780680003,1050.0,0.00011,2]
[338609228,1726780795766,439.0,0.00012311,2]
[338609229,1726780811505,168.35,0.00012679,2]
[338609230,1726780877327,250.0,0.00012427,2]
[338609231,1726780919581,250.0,0.00012425,2]
[338609232,1726780931645,331.07,0.00012348,2]
[338609233,1726780943832,161.9473255,0.000127,2]
[338609234,1726780979920,189.19,0.00010959,2]
[338609235,1726781009515,172.39,0.00012427,2]
[338609236,1726781012162,200.0,0.00023,120]
[338609237,1726781039189,284.43,0.00012427,2]
[338609238,1726781136265,22000.0,9e-05,2]
[338609239,1726781233881,782.72,0.00010395,2]
[338609240,1726781234260,782.72,0.00012659,2]
[338609241,1726781259936,1000.0,0.00012315,2]
[338609262,1726781432406,-166.24,0.00012766,2]
[338609263,1726781432417,-1650.8135657,0.0001278,2]
[338609264,1726781432428,-319.86038199,0.0001278,2]
[338609265,1726781432440,-822.5,0.0001278,2]
[338609266,1726781432573,-1458.77142775,0.0001278,2]
[338609267,1726781432582,-4004.58458087,0.00012795,2]
[338609268,1726781432593,-397.08384421,0.00012795,2]
[338609269,1726781432687,-258.76851609,0.00012795,2]
[338609270,1726781432698,-1578.55756815,0.00012795,2]
[338609276,1726781438321,-356.16223768,0.00012795,2]
[338609277,1726781438331,-859.85968668,0.00012795,2]
[338609278,1726781438342,-6.13420002,0.00012795,2]
[338609279,1726781438352,-843.2582012,0.00012795,2]
[338609280,1726781438361,-601.94567442,0.00012798,7]
[338609281,1726781438377,-2042.05432558,0.00012798,7]
[338609282,1726781438387,-34.46129258,0.00012799,2]
[338609283,1726781438545,-184.16822429,0.00012799,2]
[338609284,1726781438555,-620.776,0.00012799,2]
[338609285,1726781438566,-172.101,0.00012799,2]
[338609286,1726781438576,-150.0,0.00012799,2]
[338609287,1726781438586,-605.0,0.000128,2]
[338609288,1726781438596,-23450.07079701,0.000128,2]
[338609289,1726781438608,-751.13021512,0.000128,2]
[338609290,1726781438620,-340.82918845,0.000128,2]
[338609291,1726781440344,-526.41,0.000128,2]
[338609292,1726781440402,-753.83647302,0.000128,2]
[338609293,1726781440414,-415.88017937,0.000128,2]
[338609294,1726781440425,-3249.95340702,0.000128,2]
[338609295,1726781440462,-89188.5842975,0.000128,2]
[338609296,1726781440471,-2292.12059461,0.000128,2]
[338609298,1726781440630,-306.09729367,0.000128,2]
[338609430,1726781443446,-338.94299958,0.000128,2]
[338609445,1726781446339,-625.0,0.000128,2]
[338609447,1726781446349,-1150.2024868,0.000128,2]
[338609462,1726781446503,-8697.55783014,0.000128,2]
[338609471,1726781453067,7500.0,0.000127,2]
[338609472,1726781470026,181.03043011,0.000127,2]
[338609473,1726781482490,2500.0,0.000127,2]
[338609474,1726781488869,320.26691667,0.000127,2]
[338609475,1726781515867,190.88,0.00010959,2]
[338609476,1726781529748,631.98855435,0.000127,2]
[338609477,1726781532516,250.0,0.00012425,2]
[338609478,1726781539239,1257.337,0.000127,2]
[338609479,1726781540682,3071.8389,0.000127,2]
[338609480,1726781574301,580.5427,0.000127,2]
[338609481,1726781598848,291.36,0.00012389,2]
[338609482,1726781618577,1000.0,0.000127,2]
[338609483,1726781622360,200.0,0.00012698,2]
[338609484,1726781717287,727.6397,0.000127,2]
[338609485,1726781766322,299.17,0.00012423,2]
[338609486,1726781773156,420.0,0.000127,2]
[338609487,1726781778775,150.0,0.00012575,2]
[338609488,1726781778895,150.0,0.00012555,2]
[338609489,1726781778959,150.0,0.00012666,2]
[338609490,1726781834100,200.0,0.00012296,2]
[338609491,1726781871905,764.21,0.00010378,2]
[338609492,1726781872305,764.21,0.00012642,2]
[338609493,1726782034964,167.41,0.00012666,2]
[338609494,1726782038742,500.0,0.00022999,120]
[338609495,1726782039002,500.0,0.00022999,120]
[338609496,1726782039392,500.0,0.00022999,120]
[338609497,1726782039539,500.0,0.00022999,120]
[338609498,1726782040135,500.0,0.00022999,120]
[338609499,1726782040430,500.0,0.00022999,120]
[338609500,1726782040687,500.0,0.00022999,120]
[338609501,1726782040943,500.0,0.00022999,120]
[338609502,1726782041241,500.0,0.00022999,120]
[338609503,1726782041512,500.0,0.00022999,120]
[338609504,1726782042102,500.0,0.00022999,120]
[338609505,1726782042379,500.0,0.00022999,120]
[338609506,1726782043031,462.46421137,0.00022999,120]
[338609507,1726782089800,2000.0,0.00022,60]
[338609508,1726782102859,560.55015933,0.00022999,120]
[338609509,1726782114470,250.0,0.00012339,2]
[338609510,1726782189056,187.68060646,0.000127,2]
[338609511,1726782191492,164.93,0.00010959,2]
[338609512,1726782219569,271.51,0.00012335,2]
[338609513,1726782354270,407.4,0.00012205,2]
[338609514,1726782383474,746.0,0.00010329,2]
[338609515,1726782383868,746.0,0.00012593,2]
[338609516,1726782399828,23890.0,0.00012205,2]
[338609517,1726782416863,840.0,0.00012205,2]
[338609518,1726782483588,1050.0,0.00011,2]
[338609519,1726782516878,2500.0,0.000119,4]
[338609520,1726782518995,5000.0,0.00012,4]
[338609521,1726782521103,7600.0,0.000121,4]
[338609522,1726782523222,10100.0,0.000122,4]
[338609523,1726782525351,12700.0,0.000123,4]
[338609524,1726782527465,2500.0,0.000124,4]
[338609525,1726782529565,2500.0,0.000125,4]
[338609526,1726782531715,2500.0,0.000126,4]
[338609527,1726782533810,2500.0,0.000127,4]
[338609530,1726782606426,-150.0,0.00012744,2]
[338609531,1726782617910,186.9,0.00012734,2]
[338609547,1726782631745,-287.75929226,0.00012754,2]
[338609548,1726782631754,-119.01922789,0.00012767,2]
[338609549,1726782631765,-30.98077211,0.00012767,2]
[338609550,1726782631775,-212.09233861,0.00012773,2]
[338609551,1726782631784,-357.74612928,0.00012773,2]
[338609552,1726782631795,-142.25387072,0.00012773,2]
[338609553,1726782631804,-589.533,0.00012787,2]
[338609554,1726782631813,-169.964,0.00012787,2]
[338609555,1726782631822,-423.822302,0.00012795,2]
[338609556,1726782631831,-783.86424083,0.00012795,2]
[338609557,1726782631843,-1124.77591137,0.00012795,2]
[338609558,1726782631851,-412.19689921,0.00012799,2]
[338609559,1726782631861,-163.97213765,0.00012799,2]
[338609560,1726782631869,-150.0,0.00012799,2]
[338609561,1726782631878,-611.0,0.000128,2]
[338609562,1726782631887,-2028.64529126,0.000128,2]
[338609563,1726782631898,-2566.12760066,0.000128,2]
[338609564,1726782631908,-1552.423596,0.000128,2]
[338609565,1726782631919,-301.2900896,0.000128,2]
[338609566,1726782631930,-8674.04466553,0.000128,2]
[338609567,1726782631952,-5792.6601177,0.000128,2]
[338609568,1726782631963,-658.25,0.000128,2]
[338609569,1726782631974,-570.09,0.000128,2]
[338609570,1726782631985,-638.53496438,0.000128,2]
[338609571,1726782631996,-943.09082566,0.000128,2]
[338609572,1726782632007,-701.76717699,0.000128,2]
[338609573,1726782632017,-548.16321584,0.000128,2]
[338609574,1726782632028,-15798.05542308,0.000128,2]
[338609578,1726782637114,150.0,0.0001245,2]
[338609581,1726782637583,-450.87290596,0.000128,2]
[338609582,1726782637594,-358.33485164,0.000128,2]
[338609583,1726782637606,-874.7898545,0.000128,2]
[338609584,1726782637641,-10135.65999346,0.000128,2]
[338609585,1726782637653,-17981.48089212,0.000128,2]
[338609586,1726782637699,-273.2828905,0.000128,2]
[338609587,1726782637712,-594.5,0.000128,2]
[338609588,1726782637758,-281.55,0.000128,2]
[338609589,1726782637772,-6628.30439943,0.000128,2]
[338609590,1726782637786,-592.08569065,0.000128,2]
[338609591,1726782637816,-10237.68645075,0.000128,2]
[338609592,1726782637829,-1000.66390007,0.000128,2]
[338609593,1726782637840,-551.51691375,0.000128,2]
[338609594,1726782637852,-552.0,0.000128,2]
[338609595,1726782637861,-13638.81402451,0.000128,2]
[338609596,1726782637875,-1177.0,0.000128,2]
[338609597,1726782637886,-1851.34130064,0.000128,2]
[338609598,1726782637898,-729.82228752,0.000128,2]
[338609599,1726782637912,-289.4002629,0.000128,2]
[338609600,1726782637926,-464.49215407,0.000128,2]
[338609601,1726782637938,-2183.16426548,0.000128,2]
[338609603,1726782639594,-541.6619041,0.000128,2]
[338609604,1726782639706,-814.71476996,0.000128,2]
[338609605,1726782639875,-525.00510124,0.000128,2]
[338609606,1726782639887,-500.12611344,0.000128,2]
[338609607,1726782639900,-347.14999997,0.000128,2]
[338609750,1726782642599,-1210.0,0.000128,2]
[338609751,1726782642788,-298.72,0.000128,2]
[338609752,1726782642801,-6020.00259753,0.000128,2]
[338609753,1726782642813,-7654.86113804,0.000128,2]
[338609754,1726782642825,-172006.29629305,0.000128,2]
[338609755,1726782642837,-36597.54571064,0.000128,2]
[338609756,1726782642848,-5528.38735341,0.000128,2]
[338609757,1726782642860,-500.0,0.000128,2]
[338609758,1726782642871,-3011.29539032,0.000128,2]
[338609759,1726782642883,-2829.58704795,0.000128,2]
[338609760,1726782642894,-500.0,0.000128,2]
[338609761,1726782642906,-511.74477419,0.000128,2]
[338609762,1726782642917,-1836.32055326,0.000128,2]
[338609763,1726782642929,-3664.28065587,0.000128,2]
[338609764,1726782642940,-3397.76989014,0.000128,2]
[338609765,1726782642951,-1269.05719409,0.000128,2]
[338609766,1726782642963,-9245.25,0.000128,2]
[338609767,1726782642979,-26275.86125951,0.000128,2]
[338609768,1726782642991,-469.133491,0.000128,2]
[338609769,1726782643002,-4783.16,0.000128,2]
[338609770,1726782643014,-22850.13228136,0.000128,2]
[338609772,1726782643030,-2716.41099098,0.000128,2]
[338609774,1726782643042,-18847.96200157,0.000128,2]
[338609778,1726782645559,-1301.37556257,0.00012795,2]
[338609779,1726782645782,-594.83703848,0.00012795,2]
[338609780,1726782645843,-10019.09632223,0.00012795,2]
[338609781,1726782647748,750.16,0.00010959,2]
[338609782,1726782648068,1163.5541,0.000127,2]
[338609783,1726782648532,200.0,0.00012492,2]
[338609784,1726782654669,1000.0,0.000127,2]
[338609785,1726782668898,322.49883966,0.00022,60]
[338609786,1726782679615,20997.9669,0.000127,2]
[338609787,1726782681887,322.37532972,0.000127,2]
[338609788,1726782684312,512.384042,0.000127,2]
[338609789,1726782689165,1200.0,0.00015,30]
[338609790,1726782693798,182.953,0.000127,2]
[338609791,1726782721624,250.0,0.00012327,2]
[338609792,1726782732460,281.8951,0.000127,2]
[338609793,1726782734609,500.0,0.00010068,2]
[338609794,1726782734652,500.0,0.00011164,2]
[338609795,1726782735812,500.0,0.00011164,2]
[338609796,1726782740006,4000.0,0.00012743,2]
[338609797,1726782743432,7500.0,0.000127,2]
[338609798,1726782753911,156.7,0.00010959,2]
[338609799,1726782768027,198.4199,0.000127,2]
[338609800,1726782768736,174.70793817,0.000127,2]
[338609801,1726782787213,221.08,0.00012287,2]
[338609802,1726782798856,202.9393343,0.000127,2]
[338609803,1726782814577,500.0,0.00012698,2]
[338609804,1726782817785,200.0,0.00012698,2]
[338609805,1726782877946,290.34,0.00012287,2]
[338609806,1726782881328,215.4172838,0.000127,2]
[338609807,1726782956622,221898.12822733,0.000127,2]
[338609808,1726782956656,80346.80217267,0.000127,2]
[338609809,1726782961827,328.0,0.0001225,2]
[338609810,1726783026927,157.73970547,0.00012695,2]
[338609811,1726783031926,157.73970547,0.000127,2]
[338609812,1726783115470,726.64,0.00010292,2]
[338609813,1726783115683,726.64,0.00012556,2]
[338609814,1726783126578,162.46456211,0.000127,2]
[338609815,1726783126602,162.46456211,0.000127,2]
[338609816,1726783126623,162.46456211,0.000127,2]
[338609817,1726783126644,162.46456211,0.000127,2]
[338609818,1726783126664,162.46456211,0.000127,2]
[338609819,1726783126684,76.68888945,0.000127,2]
[338609820,1726783282845,152.58665433,0.00012521,2]
[338609821,1726783282866,16.44334567,0.00012521,2]
[338609822,1726783292179,152.58665433,0.00012156,2]
[338609823,1726783292200,97.41334567,0.00012156,2]
[338609824,1726783295746,155.45,0.00010959,2]
[338609825,1726783322089,243.29,0.00012198,2]
[338609826,1726783341128,150.0,0.00012114,2]
[338609827,1726783341149,14.41,0.00012114,2]
[338609828,1726783345645,150.0,0.00012114,2]
[338609829,1726783345667,100.0,0.00012114,2]
[338609830,1726783352513,1500.0,0.00012114,2]
[338609831,1726783360840,150.0,0.00012156,2]
[338609832,1726783360862,150.0,0.00012156,2]
[338609833,1726783360882,150.0,0.00012156,2]
[338609834,1726783361105,150.0,0.00012156,2]
[338609835,1726783361128,150.0,0.00012156,2]
[338609836,1726783361149,150.0,0.00012156,2]
[338609837,1726783361170,150.0,0.00012156,2]
[338609838,1726783361192,150.0,0.00012156,2]
[338609839,1726783361211,150.0,0.00012156,2]
[338609840,1726783361231,150.0,0.00012156,2]
[338609841,1726783361250,150.0,0.00012156,2]
[338609842,1726783361270,150.0,0.00012156,2]
[338609843,1726783361291,57.24,0.00012156,2]
[338609844,1726783364889,150.0,0.00012725,2]
[338609845,1726783364911,150.0,0.00012725,2]
[338609846,1726783364933,150.0,0.00012725,2]
[338609847,1726783364953,7.382313,0.00012725,2]
[338609848,1726783369444,450.0,0.00010959,2]
[338609849,1726783426343,150.0,0.00012695,2]
[338609850,1726783434223,150.14448516,0.000127,2]
[338609851,1726783480996,500.0,0.00022999,120]
[338609852,1726783481268,500.0,0.00022999,120]
[338609853,1726783481846,500.0,0.00022999,120]
[338609854,1726783482201,500.0,0.00022999,120]
[338609855,1726783482395,500.0,0.00022999,120]
[338609856,1726783482649,500.0,0.00022999,120]
[338609857,1726783482937,500.0,0.00022999,120]
[338609858,1726783483219,500.0,0.00022999,120]
[338609859,1726783483485,500.0,0.00022999,120]
[338609860,1726783483766,500.0,0.00022999,120]
[338609861,1726783484049,500.0,0.00022999,120]
[338609862,1726783484324,306.66789335,0.00022999,120]
[338609863,1726783490287,150.0,0.00012216,2]
[338609864,1726783490309,150.0,0.00012216,2]
[338609865,1726783490330,150.0,0.00012216,2]
[338609866,1726783490350,150.0,0.00012216,2]
[338609867,1726783490370,150.0,0.00012216,2]
[338609868,1726783490391,150.0,0.00012216,2]
[338609869,1726783490412,150.0,0.00012216,2]
[338609870,1726783490433,150.0,0.00012216,2]
[338609871,1726783490453,150.0,0.00012216,2]
[338609872,1726783490475,150.0,0.00012216,2]
[338609873,1726783490496,150.0,0.00012216,2]
[338609874,1726783490518,150.0,0.00012216,2]
[338609875,1726783490539,150.0,0.00012216,2]
[338609876,1726783490560,234.73657606,0.00012216,2]
[338609877,1726783490580,150.0,0.00012216,2]
[338609878,1726783490601,150.0,0.00012216,2]
[338609879,1726783490622,150.0,0.00012216,2]
[338609880,1726783490642,150.0,0.00012216,2]
[338609881,1726783490664,141.91342394,0.00012216,2]
[338609882,1726783528837,250.0,0.00012252,2]
[338609883,1726783533975,150.0,0.00012252,2]
[338609884,1726783533997,150.0,0.00012252,2]
[338609885,1726783534019,150.0,0.00012252,2]
[338609886,1726783534041,150.0,0.00012252,2]
[338609887,1726783534063,150.0,0.00012252,2]
[338609888,1726783534084,150.0,0.00012252,2]
[338609889,1726783534107,150.0,0.00012252,2]
[338609890,1726783534129,150.0,0.00012252,2]
[338609891,1726783534151,150.0,0.00012252,2]
[338609892,1726783534172,150.0,0.00012252,2]
[338609893,1726783534194,150.0,0.00012252,2]
[338609894,1726783534216,150.0,0.00012252,2]
[338609895,1726783534239,150.0,0.00012252,2]
[338609896,1726783534261,150.0,0.00012252,2]
[338609897,1726783534282,150.0,0.00012252,2]
[338609898,1726783534303,150.0,0.00012252,2]
[338609899,1726783534324,150.0,0.00012252,2]
[338609900,1726783534346,150.0,0.00012252,2]
[338609901,1726783534367,150.0,0.00012252,2]
[338609902,1726783534388,150.0,0.00012252,2]
[338609903,1726783534411,13793.02,0.00012252,2]
[338609904,1726783539609,150.0,9.801e-05,2]
[338609905,1726783543714,1650.0,0.00012695,2]
[338609906,1726783557752,150.0,0.00011164,2]
[338609907,1726783557780,150.0,0.00011164,2]
[338609908,1726783574974,150.0,0.00011164,2]
[338609909,1726783574995,350.0,0.00011164,2]
[338609910,1726783575025,500.0,0.00010068,2]
[338609911,1726783575053,500.0,0.00011164,2]
[338609912,1726783599423,150.0,0.00012147,2]
[338609913,1726783599446,850.0,0.00012147,2]
[338609914,1726783627853,300.0,0.00012685,2]
[338609915,1726783635060,150.0,0.000127,2]
[338609916,1726783650929,150.0,0.000127,2]
[338609917,1726783650950,64.2399,0.000127,2]
[338609918,1726783687276,1034.4000603,0.00012446,2]
[338609919,1726783742587,150.0,0.00012186,2]
[338609920,1726783742610,150.0,0.00012186,2]
[338609921,1726783742633,92.17,0.00012186,2]
[338609922,1726783742853,57.83,0.0001219,2]
[338609923,1726783742877,150.0,0.0001219,2]
[338609924,1726783742904,150.0,0.0001219,2]
[338609925,1726783742925,34.34,0.0001219,2]
[338609926,1726783743056,115.66,0.00012193,2]
[338609927,1726783743078,150.0,0.00012193,2]
[338609928,1726783743099,126.51,0.00012193,2]
[338609929,1726783743269,23.49,0.00012196,2]
[338609930,1726783743290,150.0,0.00012196,2]
[338609931,1726783743313,150.0,0.00012196,2]
[338609932,1726783743335,68.68,0.00012196,2]
[338609933,1726783743754,81.32,0.00012199,2]
[338609934,1726783743777,150.0,0.00012199,2]
[338609935,1726783743801,150.0,0.00012199,2]
[338609936,1726783743823,10.85,0.00012199,2]
[338609937,1726783744034,139.15,0.00012202,2]
[338609938,1726783744059,150.0,0.00012202,2]
[338609939,1726783744083,103.02,0.00012202,2]
[338609940,1726783744355,46.98,0.00012206,2]
[338609941,1726783744378,150.0,0.00012206,2]
[338609942,1726783744401,150.0,0.00012206,2]
[338609943,1726783744423,45.19,0.00012206,2]
[338609944,1726783744595,198.65667606,0.00012209,2]
[338609945,1726783744619,150.0,0.00012209,2]
[338609946,1726783744642,43.51332394,0.00012209,2]
[338609947,1726783745033,106.48667606,0.00012212,2]
[338609948,1726783745056,150.0,0.00012212,2]
[338609949,1726783745079,135.68332394,0.00012212,2]
[338609950,1726783745477,14.31667606,0.00012215,2]
[338609951,1726783745504,377.85332394,0.00012215,2]
[338609952,1726783745694,392.17,0.00012219,2]
[338609953,1726783745948,392.17,0.00012222,2]
[338609954,1726783746409,392.17,0.00012225,2]
[338609955,1726783746635,392.17,0.00012228,2]
[338609956,1726783746875,392.17,0.00012231,2]
[338609957,1726783747120,392.17,0.00012235,2]
[338609958,1726783747365,392.17,0.00012238,2]
[338609959,1726783747583,392.17,0.00012241,2]
[338609960,1726783747801,392.17,0.00012244,2]
[338609961,1726783748044,392.17,0.00012247,2]
[338609962,1726783755644,2681.07,0.0001272,2]
[338609963,1726783778710,1000.0,0.000127,2]
[338609964,1726783786439,407.3823126,0.000127,2]
[338609965,1726783804164,446.68,0.00012186,2]
[338609966,1726783808526,500.0,0.00010068,2]
[338609967,1726783814570,500.0,0.00011164,2]
[338609968,1726783818297,726.66,0.00010228,2]
[338609969,1726783818519,726.66,0.00012492,2]
[338609970,1726783827470,154.74,0.00010959,2]
[338609976,1726783831949,-159.12,0.00012785,2]
[338609977,1726783831959,-165.12754183,0.00012789,2]
[338609978,1726783831968,-151.61,0.0001279,2]
[338609979,1726783831979,-6.87784225,0.0001279,2]
[338609980,1726783831991,-144.73215775,0.0001279,2]
[338609981,1726783832000,-151.61,0.0001279,2]
[338609982,1726783832010,-151.61,0.0001279,2]
[338609983,1726783832019,-151.61,0.0001279,2]
[338609984,1726783832030,-151.61,0.0001279,2]
[338609985,1726783832039,-151.61,0.0001279,2]
[338609986,1726783832048,-151.61,0.0001279,2]
[338609987,1726783832057,-151.61,0.0001279,2]
[338609988,1726783832067,-151.61,0.0001279,2]
[338609989,1726783832076,-151.61,0.0001279,2]
[338609990,1726783832085,-151.61,0.0001279,2]
[338609991,1726783832095,-151.61,0.0001279,2]
[338609992,1726783832105,-151.61,0.0001279,2]
[338609993,1726783832114,-151.61,0.0001279,2]
[338609994,1726783832123,-14.78769513,0.0001279,2]
[338609995,1726783832134,-136.82230487,0.0001279,2]
[338609996,1726783832144,-151.61,0.0001279,2]
[338609997,1726783832155,-151.61,0.0001279,2]
[338609998,1726783832167,-387.09481798,0.00012794,2]
[338609999,1726783832181,-196.00718202,0.00012794,2]
[338610000,1726783832190,-169.964,0.00012794,2]
[338610001,1726783832200,-150.0,0.00012798,2]
[338610002,1726783832210,-500.0,0.00012799,2]
[338610004,1726783832219,-500.0,0.00012799,2]
[338610006,1726783832229,-500.0,0.00012799,2]
[338610008,1726783832238,-500.0,0.00012799,2]
[338610010,1726783832248,-405.63483473,0.00012799,2]
[338610011,1726783832257,-150.01,0.00012799,2]
[338610013,1726783832266,-637.6016004,0.00012799,2]
[338610015,1726783832276,-5142.7364388,0.00012799,2]
[338610016,1726783832285,-879.2196223,0.00012799,2]
[338610017,1726783832295,-590.0,0.000128,2]
[338610018,1726783832304,-14328.82632162,0.000128,2]
[338610019,1726783832316,-785.42033485,0.000128,2]
[338610020,1726783832331,-95519.94681926,0.000128,2]
[338610021,1726783832344,-193599.44464397,0.000128,2]
[338610022,1726783832355,-517.85511205,0.000128,2]
[338610023,1726783832366,-1066.56431726,0.000128,2]
[338610024,1726783832377,-2381.48970547,0.000128,2]
[338610026,1726783838757,-579.0,0.000128,2]
[338610027,1726783838766,-941.98047815,0.000128,2]
[338610028,1726783838777,-5744.72923051,0.000128,2]
[338610029,1726783838788,-11778.83091943,0.000128,2]
[338610030,1726783838799,-29179.06330462,0.000128,2]
[338610031,1726783838810,-948.80402649,0.000128,2]
[338610032,1726783838821,-2810.51772045,0.000128,2]
[338610033,1726783838833,-5945453.28630428,0.000128,2]
[338610034,1726783838844,-381.33465368,0.000128,2]
[338610035,1726783838854,-516.07115909,0.000128,2]
[338610036,1726783838866,-598.75373411,0.000128,2]
[338610037,1726783838880,-270.9400001,0.000128,2]
[338610039,1726783839833,-1125.95213341,0.000128,2]